fUST/lending_fUST_20250921
["ID","MTS","AMOUNT","RATE_DAILY","PERIOD"]
[386561020,1758394249181,-480.0,0.00021152,2]
[386561021,1758394249191,-306.44823262,0.00021152,2]
[386561022,1758394249201,-480.0,0.00021152,2]
[386561023,1758394249211,-585.62,0.00021152,2]
[386561024,1758394249222,-959.86,0.00021152,2]
[386561025,1758394249236,-744.17,0.00021152,2]
[386561026,1758394249246,-480.0,0.00021152,2]
[386561027,1758394249257,-5214.91,0.00021152,2]
[386561028,1758394249271,-480.0,0.00021152,2]
[386561029,1758394249281,-1050.68,0.00021152,2]
[386561030,1758394249291,-480.0,0.00021152,2]
[386561031,1758394249301,-562.19,0.00021153,2]
[386561032,1758394249310,-480.0,0.00021153,2]
[386561033,1758394249320,-480.0,0.00021153,2]
[386561034,1758394249330,-480.0,0.00021154,2]
[386561035,1758394249339,-1961.93,0.00021157,2]
[386561036,1758394249349,-441.2808001,0.00021157,2]
[386561037,1758394249359,-11730.42,0.00021157,2]
[386561038,1758394249369,-570.11,0.00021157,2]
[386561039,1758394249378,-1185.08,0.00021157,2]
[386561040,1758394249388,-1189.67,0.00021158,2]
[386561041,1758394249398,-151.0,0.0002117,2]
[386561042,1758394249407,-500.0,0.0002117,2]
[386561043,1758394249417,-500.0,0.0002117,2]
[386561044,1758394249427,-500.0,0.0002117,2]
[386561045,1758394249436,-214.42578778,0.0002117,2]
[386561046,1758394249446,-287.94012382,0.0002117,2]
[386561047,1758394249456,-151.0,0.0002117,2]
[386561048,1758394249466,-151.0,0.0002117,2]
[386561049,1758394249475,-263.82528696,0.0002117,2]
[386561050,1758394249485,-500.0,0.0002117,2]
[386561051,1758394249495,-151.0,0.0002117,2]
[386561052,1758394249509,-1000.0,0.00021221,2]
[386561053,1758394249521,-506.70609278,0.00021221,2]
[386561054,1758394249531,-1000.0,0.00021221,2]
[386561055,1758394249541,-1000.0,0.00021221,2]
[386561056,1758394249551,-1000.0,0.00021221,2]
[386561057,1758394249560,-500.0,0.00021221,2]
[386561058,1758394249570,-1000.0,0.00021221,2]
[386561059,1758394249580,-2469.02658553,0.00021258,2]
[386561060,1758394249589,-265.0,0.0002128,2]
[386561061,1758394249601,-168.58402945,0.0002136,2]
[386561062,1758394249611,-480.0,0.00021418,2]
[386561063,1758394249620,-1281.87,0.00021418,2]
[386561064,1758394249630,-480.0,0.0002142,2]
[386561065,1758394249639,-2412.04,0.0002142,2]
[386561066,1758394249649,-1330.18,0.00021424,2]
[386561067,1758394249658,-480.0,0.00021424,2]
[386561068,1758394249667,-947.58,0.00021424,2]
[386561069,1758394249677,-1231.34,0.00021424,2]
[386561070,1758394249687,-1152.6,0.00021424,2]
[386561071,1758394249696,-480.0,0.00021424,2]
[386561072,1758394249705,-480.0,0.00021424,2]
[386561073,1758394249715,-654.09,0.00021424,2]
[386561074,1758394249725,-480.0,0.00021424,2]
[386561076,1758394249734,-480.0,0.00021425,2]
[386561077,1758394249743,-491.43,0.00021425,2]
[386561078,1758394249752,-480.0,0.00021425,2]
[386561079,1758394249761,-480.0,0.00021425,2]
[386561080,1758394249770,-480.0,0.00021425,2]
[386561082,1758394249779,-735.45,0.00021425,2]
[386561084,1758394249789,-480.0,0.00021425,2]
[386561086,1758394249799,-480.0,0.00021425,2]
[386561088,1758394249808,-480.0,0.00021425,2]
[386561090,1758394249818,-1420.42,0.00021425,2]
[386561092,1758394249827,-480.0,0.00021425,2]
[386561094,1758394249837,-1269.95,0.00021425,2]
[386561096,1758394249846,-480.0,0.00021425,2]
[386561098,1758394249855,-480.0,0.00021425,2]
[386561100,1758394249865,-480.0,0.00021425,2]
[386561102,1758394249873,-480.0,0.00021425,2]
[386561104,1758394249883,-480.0,0.00021425,2]
[386561106,1758394249892,-1970.34,0.00021425,2]
[386561108,1758394249901,-480.0,0.00021425,2]
[386561110,1758394249911,-1466.16,0.00021425,2]
[386561113,1758394249920,-480.0,0.00021425,2]
[386561115,1758394249930,-2577.64,0.00021425,2]
[386561117,1758394249939,-1148.03,0.00021426,2]
[386561119,1758394249948,-1322.53,0.00021426,2]
[386561121,1758394249958,-480.0,0.00021426,2]
[386561123,1758394249967,-1212.32,0.00021426,2]
[386561125,1758394249976,-508.08,0.00021426,2]
[386561127,1758394249985,-942.48,0.00021426,2]
[386561128,1758394249995,-480.0,0.00021426,2]
[386561131,1758394250005,-480.0,0.00021426,2]
[386561133,1758394250015,-480.0,0.00021426,2]
[386561135,1758394250024,-585.62,0.00021426,2]
[386561137,1758394250034,-959.86,0.00021426,2]
[386561139,1758394250043,-744.17,0.00021426,2]
[386561141,1758394250054,-480.0,0.00021426,2]
[386561143,1758394250063,-5214.91,0.00021426,2]
[386561145,1758394250072,-480.0,0.00021426,2]
[386561147,1758394250081,-1050.68,0.00021426,2]
[386561148,1758394250092,-480.0,0.00021426,2]
[386561150,1758394250102,-265.0,0.00021427,2]
[386561151,1758394250111,-480.0,0.00021427,2]
[386561152,1758394250121,-480.0,0.00021427,2]
[386561153,1758394250130,-480.0,0.00021428,2]
[386561154,1758394250140,-1961.93,0.00021431,2]
[386561155,1758394250149,-11730.42,0.00021431,2]
[386561156,1758394250160,-570.11,0.00021431,2]
[386561157,1758394250169,-1185.08,0.00021431,2]
[386561158,1758394250178,-1189.67,0.00021432,2]
[386561159,1758394250188,-151.0,0.00021444,2]
[386561160,1758394250197,-500.0,0.00021444,2]
[386561161,1758394250206,-429.63566436,0.00021444,2]
[386561162,1758394250264,354.74525775,0.000199,2]
[386561163,1758394250290,940.8,0.000199,2]
[386561164,1758394250315,1240.07394696,0.000199,2]
[386562426,1758394265092,1869.02576537,0.00020503,2]
[386562491,1758394295541,150.0,0.00019218,2]
[386562492,1758394295946,150.0,0.00020133,2]
[386562493,1758394368375,150.0,0.00019221,2]
[386562494,1758394368784,150.0,0.00020137,2]
[386562495,1758394424880,2451.09856464,0.000199,2]
[386562496,1758394442200,150.0,0.00019221,2]
[386562497,1758394442589,150.0,0.00020136,2]
[386562499,1758394516495,150.0,0.00019216,2]
[386562500,1758394516899,150.0,0.00020131,2]
[386562501,1758394519183,-300.0,0.00020594,2]
[386562502,1758394519208,-251.20909263,0.00020595,2]
[386562503,1758394549149,-288.69676557,0.00020595,2]
[386562504,1758394553343,-254.45425092,0.00020595,2]
[386562505,1758394556266,-252.20256897,0.00020595,2]
[386562506,1758394556289,-208.05710278,0.00020595,2]
[386562507,1758394557674,-179.25159537,0.00020595,2]
[386562508,1758394559531,-290.91708231,0.00020595,2]
[386562509,1758394565216,-183.36131143,0.00020594,2]
[386562510,1758394567358,-116.63868857,0.00020594,2]
[386562511,1758394567381,-25.56512691,0.00020595,2]
[386562512,1758394567404,-118.70500648,0.00020595,2]
[386562513,1758394569907,5000.0,0.00019178,2]
[386562514,1758394570084,4700.01,0.00019178,2]
[386562515,1758394570109,299.99,0.00019178,2]
[386562516,1758394572318,-170.027709,0.00020572,2]
[386562517,1758394574737,-257.31082023,0.00020572,2]
[386562518,1758394577188,-332.58527821,0.00020572,2]
[386562519,1758394582806,-152.0,0.00020572,2]
[386562520,1758394584698,-426.75339217,0.00020572,2]
[386562521,1758394586055,-314.74275306,0.00020572,2]
[386562522,1758394587452,-212.86923185,0.00020572,2]
[386562523,1758394590596,-269.16045324,0.00020572,2]
[386562524,1758394591267,150.0,0.00019215,2]
[386562525,1758394591681,150.0,0.0002013,2]
[386562526,1758394592647,-151.80067465,0.00020572,2]
[386562527,1758394598299,-348.5126991,0.00020572,2]
[386562528,1758394602430,-285.15495482,0.00020572,2]
[386562529,1758394605006,-267.62849044,0.00020572,2]
[386562530,1758394606704,2369.39527892,0.000199,2]
[386562531,1758394608439,-805.56,0.00020572,2]
[386562532,1758394611513,-200.56775672,0.00020572,2]
[386562533,1758394613530,-300.01947184,0.00020572,2]
[386562534,1758394616122,-193.30256282,0.00020572,2]
[386562535,1758394618530,-312.00375185,0.00020572,2]
[386562536,1758394618555,-136.88664512,0.00020595,2]
[386562537,1758394622111,-293.60313235,0.00020595,2]
[386562538,1758394626251,-255.3915175,0.00020594,2]
[386562539,1758394631271,-44.6084825,0.00020594,2]
[386562540,1758394631295,-145.9515175,0.00020595,2]
[386562541,1758394635853,-194.09381965,0.00020595,2]
[386562542,1758394638895,-354.94665699,0.00020595,2]
[386562543,1758394642322,-244.6084825,0.00020595,2]
[386562544,1758394643863,-155.13037013,0.00020595,2]
[386562545,1758394648549,-13.75915323,0.00020595,2]
[386562546,1758394648681,-172.31609738,0.00020595,2]
[386562547,1758394651071,-271.96612718,0.00020595,2]
[386562548,1758394664396,150.0,0.0001922,2]
[386562549,1758394664799,150.0,0.00020135,2]
[386562550,1758394735025,150.0,0.00019219,2]
[386562551,1758394735439,150.0,0.00020135,2]
[386562552,1758394788782,2290.41543627,0.000199,2]
[386562553,1758394804682,150.0,0.00019217,2]
[386562554,1758394805599,150.0,0.00020132,2]
[386562555,1758394813419,-300.0,0.00020594,2]
[386562556,1758394813448,-820.0,0.00020594,2]
[386562557,1758394813477,-480.0,0.00020595,2]
[386562558,1758394813506,-569.2,0.00020595,2]
[386562559,1758394813535,-480.0,0.00020595,2]
[386562560,1758394813566,-480.0,0.00020595,2]
[386562561,1758394813596,-612.87,0.00020595,2]
[386562562,1758394813624,-480.0,0.00020595,2]
[386562563,1758394813653,-480.0,0.00020595,2]
[386562564,1758394814094,-1078.3,0.00020595,2]
[386562565,1758394814126,-548.99464985,0.00020595,2]
[386562566,1758394814158,-500.0,0.00020595,2]
[386562567,1758394814189,-639.33932927,0.00020595,2]
[386562568,1758394814218,-647.1295556,0.00020595,2]
[386562569,1758394814246,-500.0,0.00020595,2]
[386562570,1758394814276,-500.0,0.00020595,2]
[386562571,1758394814304,-500.0,0.00020595,2]
[386562572,1758394814392,-500.0,0.00020595,2]
[386562573,1758394814420,-361.09266354,0.00020595,2]
[386562574,1758394814448,-500.0,0.00020595,2]
[386562575,1758394814476,-321.95304702,0.00020595,2]
[386562576,1758394814504,-58.35692406,0.00020595,2]
[386562577,1758394823571,-243.29990761,0.00020595,2]
[386562578,1758394823598,-2996.20545402,0.00020595,2]
[386562579,1758394823692,-3520.99927674,0.00020595,2]
[386562580,1758394823721,-480.0,0.00020596,2]
[386562581,1758394823750,-480.0,0.00020596,2]
[386562582,1758394823779,-480.0,0.00020596,2]
[386562583,1758394823908,-480.0,0.00020595,2]
[386562584,1758394823936,-480.0,0.00020596,2]
[386562585,1758394823964,-480.0,0.00020596,2]
[386562586,1758394823993,-480.0,0.00020596,2]
[386562587,1758394824023,-480.0,0.00020596,2]
[386562588,1758394824053,-1221.8,0.00020596,2]
[386562589,1758394824082,-480.0,0.00020596,2]
[386562590,1758394824111,-480.0,0.00020596,2]
[386562591,1758394824139,-356.41,0.00020596,2]
[386562592,1758394824314,-123.59,0.00020596,2]
[386562593,1758394824345,-2215.0,0.00020596,2]
[386562594,1758394824374,-1262.67,0.00020596,2]
[386562595,1758394824403,-480.0,0.00020596,2]
[386562596,1758394824431,-480.0,0.00020596,2]
[386562597,1758394824459,-397.49,0.00020596,2]
[386562598,1758394824640,-82.51,0.00020596,2]
[386562599,1758394824670,-480.0,0.00020596,2]
[386562600,1758394824700,-1813.69,0.00020596,2]
[386562601,1758394824834,-2010.03,0.00020597,2]
[386562602,1758394824867,-238.5,0.00020597,2]
[386562603,1758394833460,-500.0,0.00020595,2]
[386562604,1758394833492,-500.0,0.00020595,2]
[386562605,1758394833524,-500.0,0.00020595,2]
[386562606,1758394833556,-500.0,0.00020595,2]
[386562607,1758394833585,-306.93369591,0.00020596,2]
[386562608,1758394833616,-750.55,0.00020597,2]
[386562609,1758394833647,-480.0,0.00020597,2]
[386562610,1758394833676,-965.77,0.00020597,2]
[386562611,1758394833709,-280.0,0.00020598,2]
[386562612,1758394834115,-500.0,0.00020595,2]
[386562613,1758394834147,-500.0,0.00020595,2]
[386562614,1758394834187,-200.0,0.00020595,2]
[386562615,1758394834225,-500.0,0.00020595,2]
[386562616,1758394834260,-500.0,0.00020595,2]
[386562617,1758394834295,-500.0,0.00020595,2]
[386562618,1758394834331,-500.0,0.00020595,2]
[386562619,1758394834364,-453.36219008,0.00020595,2]
[386562620,1758394834395,-480.0,0.00020598,2]
[386562621,1758394834428,-480.0,0.00020598,2]
[386562622,1758394834459,-293.28561984,0.00020598,2]
[386562623,1758394834635,-613.45730298,0.00020595,2]
[386562624,1758394834666,-186.71438016,0.00020598,2]
[386562625,1758394834840,-785.4,0.00020598,2]
[386562626,1758394834868,-480.0,0.00020598,2]
[386562627,1758394834896,-481.49281961,0.00020598,2]
[386562628,1758394834926,-480.0,0.00020598,2]
[386562629,1758394834954,-480.0,0.00020598,2]
[386562630,1758394834982,-480.0,0.00020598,2]
[386562631,1758394835010,-440.29,0.00020598,2]
[386562632,1758394835039,-480.0,0.00020601,2]
[386562633,1758394835110,-1050.29,0.00020601,2]
[386562634,1758394835138,-482.22800759,0.00020601,2]
[386562635,1758394835169,-1062.3,0.00020601,2]
[386562636,1758394835199,-480.0,0.00020601,2]
[386562637,1758394835230,-815.94,0.00020601,2]
[386562638,1758394835261,-1026.12,0.00020601,2]
[386562639,1758394843476,-480.0,0.00020595,2]
[386562640,1758394843505,-500.0,0.00020595,2]
[386562641,1758394843535,-480.0,0.00020595,2]
[386562642,1758394843563,-178.8189706,0.00020595,2]
[386562643,1758394843592,-480.0,0.00020596,2]
[386562644,1758394843622,-480.0,0.00020598,2]
[386562645,1758394843650,-480.0,0.00020601,2]
[386562646,1758394843679,-960.5,0.00020601,2]
[386562647,1758394843707,-480.0,0.00020601,2]
[386562648,1758394843735,-370.77,0.00020603,2]
[386562649,1758394844101,-480.0,0.00020603,2]
[386562650,1758394844130,-480.0,0.00020603,2]
[386562651,1758394844159,-480.0,0.00020603,2]
[386562652,1758394844187,-480.0,0.00020603,2]
[386562653,1758394844218,-514.75,0.00020603,2]
[386562654,1758394844248,-480.0,0.00020603,2]
[386562655,1758394844279,-538.43,0.00020603,2]
[386562656,1758394844307,-480.0,0.00020603,2]
[386562657,1758394844335,-799.88,0.00020603,2]
[386562658,1758394844364,-53.89,0.00020603,2]
[386562659,1758394844558,-426.11,0.00020603,2]
[386562660,1758394844586,-583.38256538,0.00020604,2]
[386562661,1758394844614,-298.99810247,0.00020604,2]
[386562662,1758394844643,-480.0,0.00020604,2]
[386562663,1758394844673,-480.0,0.00020604,2]
[386562664,1758394844705,-1117.2686643,0.00020604,2]
[386562665,1758394853187,-500.0,0.00020595,2]
[386562666,1758394853217,-500.0,0.00020595,2]
[386562667,1758394853245,-500.0,0.00020595,2]
[386562668,1758394853275,-578.5107279,0.00020595,2]
[386562669,1758394853306,-500.0,0.00020595,2]
[386562670,1758394853337,-500.0,0.00020595,2]
[386562671,1758394853367,-500.0,0.00020595,2]
[386562672,1758394853397,-500.0,0.00020595,2]
[386562673,1758394853428,-500.0,0.00020595,2]
[386562674,1758394853457,-342.9885442,0.00020595,2]
[386562675,1758394873458,150.0,0.00019221,2]
[386562676,1758394873875,150.0,0.00020136,2]
[386562677,1758394893574,-300.0,0.00020594,2]
[386562678,1758394893604,-1170.89,0.00020595,2]
[386562679,1758394893633,-480.0,0.00020595,2]
[386562680,1758394893662,-480.0,0.00020595,2]
[386562681,1758394893691,-480.0,0.00020596,2]
[386562682,1758394893720,-480.0,0.00020596,2]
[386562683,1758394893749,-620.14,0.00020598,2]
[386562684,1758394893779,-500.0,0.000206,2]
[386562685,1758394893808,-157.0114558,0.000206,2]
[386562686,1758394893839,-163.9270884,0.000206,2]
[386562687,1758394903629,-1006.52,0.00020595,2]
[386562688,1758394903660,-480.0,0.00020596,2]
[386562689,1758394903691,-336.0729116,0.000206,2]
[386562690,1758394903720,-500.0,0.000206,2]
[386562691,1758394903752,-500.0,0.000206,2]
[386562692,1758394903784,-500.0,0.000206,2]
[386562693,1758394903812,-202.79797008,0.000206,2]
[386562694,1758394903843,-500.0,0.000206,2]
[386562695,1758394903877,-500.0,0.000206,2]
[386562696,1758394903908,-449.22823664,0.000206,2]
[386562697,1758394913600,-480.0,0.00020595,2]
[386562698,1758394913628,-480.0,0.00020597,2]
[386562699,1758394913661,-50.77176336,0.000206,2]
[386562700,1758394913690,-500.0,0.000206,2]
[386562701,1758394913721,-500.0,0.000206,2]
[386562702,1758394913754,-500.0,0.000206,2]
[386562703,1758394913784,-470.8169225,0.000206,2]
[386562704,1758394913817,-500.0,0.000206,2]
[386562705,1758394913852,-500.0,0.000206,2]
[386562706,1758394913884,-500.0,0.000206,2]
[386562707,1758394913914,-500.0,0.000206,2]
[386562708,1758394929078,290.99506866,0.000205,2]
[386562709,1758394939140,150.0,0.0001922,2]
[386562710,1758394939527,150.0,0.00020135,2]
[386562711,1758394978748,-2122.71,0.00020595,2]
[386562712,1758394978778,-480.0,0.00020595,2]
[386562713,1758394978807,-480.0,0.00020595,2]
[386562714,1758394978836,-480.0,0.00020595,2]
[386562715,1758394978865,-1210.06,0.00020595,2]
[386562716,1758394979300,2216.49228661,0.000199,2]
[386562717,1758394988747,-480.0,0.00020595,2]
[386562718,1758394988776,-481.61529543,0.00020595,2]
[386562719,1758394988806,-480.0,0.00020595,2]
[386562720,1758394988835,-1077.42,0.00020595,2]
[386562721,1758394988862,-480.0,0.00020598,2]
[386562722,1758394988891,-300.0,0.00020598,2]
[386562723,1758394988923,-1200.0,0.00020599,2]
[386562724,1758394988952,-333.49152876,0.00020599,2]
[386562725,1758394989330,-424.78765509,0.00020599,2]
[386562726,1758394989360,-500.0,0.00020599,2]
[386562727,1758394989389,-218.97965806,0.00020599,2]
[386562728,1758394989418,-500.0,0.00020599,2]
[386562729,1758394989448,-500.0,0.00020599,2]
[386562730,1758394989579,-500.0,0.00020599,2]
[386562731,1758394989608,-500.0,0.00020599,2]
[386562732,1758394989638,-500.0,0.00020599,2]
[386562733,1758394989668,-500.0,0.00020599,2]
[386562734,1758394989698,-500.0,0.00020599,2]
[386562735,1758394989728,-212.4753737,0.00020599,2]
[386562736,1758394998766,-493.3,0.00020596,2]
[386562737,1758394998797,-287.5246263,0.00020599,2]
[386562738,1758394998828,-500.0,0.00020599,2]
[386562739,1758394998858,-500.0,0.00020599,2]
[386562740,1758394998888,-500.0,0.00020599,2]
[386562741,1758394998923,-500.0,0.00020599,2]
[386562742,1758394998953,-500.0,0.00020599,2]
[386562743,1758394998987,-500.0,0.00020599,2]
[386562744,1758394999018,-500.0,0.00020599,2]
[386562745,1758394999049,-500.0,0.00020599,2]
[386562746,1758394999450,-500.0,0.00020599,2]
[386562747,1758394999480,-444.04604247,0.00020599,2]
[386562748,1758394999509,-500.0,0.00020599,2]
[386562749,1758394999540,-500.0,0.00020599,2]
[386562750,1758394999570,-500.0,0.00020599,2]
[386562751,1758394999600,-500.0,0.00020599,2]
[386562752,1758394999631,-500.0,0.00020599,2]
[386562753,1758394999661,-500.0,0.00020599,2]
[386562754,1758394999693,-500.0,0.00020599,2]
[386562755,1758394999723,-500.0,0.00020599,2]
[386562756,1758394999982,-500.0,0.00020599,2]
[386562757,1758395000016,-500.0,0.00020599,2]
[386562758,1758395000046,-500.0,0.00020599,2]
[386562759,1758395000076,-500.0,0.00020599,2]
[386562760,1758395000106,-500.0,0.00020599,2]
[386562761,1758395000135,-500.0,0.00020599,2]
[386562762,1758395000165,-500.0,0.00020599,2]
[386562763,1758395000195,-500.0,0.00020599,2]
[386562764,1758395000224,-500.0,0.00020599,2]
[386562765,1758395000254,-500.0,0.00020599,2]
[386562766,1758395005821,150.0,0.00019316,2]
[386562767,1758395006134,150.0,0.00020236,2]
[386562768,1758395008853,-480.0,0.00020595,2]
[386562769,1758395008883,-480.0,0.00020595,2]
[386562770,1758395008912,-592.28956643,0.00020595,2]
[386562771,1758395008944,-500.0,0.00020599,2]
[386562772,1758395008983,-500.0,0.00020599,2]
[386562773,1758395009015,-500.0,0.00020599,2]
[386562774,1758395009046,-500.0,0.00020599,2]
[386562775,1758395009075,-500.0,0.00020599,2]
[386562776,1758395009105,-500.0,0.00020599,2]
[386562777,1758395009135,-395.43086714,0.00020599,2]
[386562778,1758395009327,-104.56913286,0.00020599,2]
[386562779,1758395009357,-500.0,0.00020599,2]
[386562780,1758395009386,-500.0,0.00020599,2]
[386562781,1758395009416,-500.0,0.00020599,2]
[386562782,1758395009446,-500.0,0.00020599,2]
[386562783,1758395009477,-500.0,0.00020599,2]
[386562784,1758395009506,-500.0,0.00020599,2]
[386562785,1758395009536,-500.0,0.00020599,2]
[386562786,1758395009565,-500.0,0.00020599,2]
[386562787,1758395009594,-500.0,0.00020599,2]
[386562788,1758395009625,-290.87173428,0.00020599,2]
[386562789,1758395038839,-826.95,0.00020595,2]
[386562790,1758395038868,-277.46909714,0.00020595,2]
[386562791,1758395038896,-480.0,0.00020595,2]
[386562792,1758395038924,-1035.34,0.00020595,2]
[386562793,1758395038952,-480.0,0.00020595,2]
[386562794,1758395038980,-480.0,0.00020598,2]
[386562795,1758395042752,7605.9452371,0.00019603,2]
[386562796,1758395048867,-480.0,0.00020595,2]
[386562797,1758395048896,-480.0,0.00020595,2]
[386562798,1758395048925,-3487.5867893,0.00020598,2]
[386562799,1758395049150,-1104.8364214,0.00020598,2]
[386562800,1758395049179,-300.0,0.00020598,2]
[386562801,1758395049212,-209.12826572,0.00020599,2]
[386562802,1758395049242,-500.0,0.00020599,2]
[386562803,1758395049376,-500.0,0.00020599,2]
[386562804,1758395049408,-500.0,0.00020599,2]
[386562805,1758395049440,-500.0,0.00020599,2]
[386562806,1758395049469,-500.0,0.00020599,2]
[386562807,1758395049498,-500.0,0.00020599,2]
[386562808,1758395049527,-272.08062576,0.00020599,2]
[386562809,1758395059009,-505.91065217,0.00020595,2]
[386562810,1758395059042,-1788.65,0.00020595,2]
[386562811,1758395059071,-480.0,0.00020595,2]
[386562812,1758395059100,-480.0,0.00020598,2]
[386562813,1758395059132,-480.0,0.00020598,2]
[386562814,1758395059165,-227.91937424,0.00020599,2]
[386562815,1758395059199,-500.0,0.00020599,2]
[386562816,1758395059232,-500.0,0.00020599,2]
[386562817,1758395059638,-500.0,0.00020599,2]
[386562818,1758395059671,-263.06694874,0.00020599,2]
[386562819,1758395059701,-480.0,0.00020599,2]
[386562820,1758395059732,-500.0,0.00020599,2]
[386562821,1758395059761,-250.94563643,0.00020599,2]
[386562822,1758395059791,-626.74972161,0.00020599,2]
[386562823,1758395059819,-308.36835968,0.00020599,2]
[386562824,1758395059849,-500.0,0.00020599,2]
[386562825,1758395059879,-500.0,0.00020599,2]
[386562826,1758395059909,-447.46734463,0.00020599,2]
[386562827,1758395059939,-500.0,0.00020599,2]
[386562828,1758395068940,-482.34976014,0.00020595,2]
[386562829,1758395068971,-480.0,0.00020598,2]
[386562830,1758395069005,-500.0,0.00020599,2]
[386562831,1758395069037,-500.0,0.00020599,2]
[386562832,1758395069066,-2880.28129692,0.000206,2]
[386562833,1758395072141,150.0,0.00019313,2]
[386562834,1758395072557,150.0,0.00020233,2]
[386562835,1758395166071,2142.60921067,0.000199,2]
[386562836,1758395202402,-166.00658496,0.00020591,10]
[386562837,1758395205873,-207.44447851,0.00020591,10]
[386562838,1758395208597,-204.25661415,0.00020591,10]
[386562839,1758395227092,-600.86,0.00020589,10]
[386562840,1758395227115,-311.61083964,0.0002059,10]
[386562841,1758395227144,-409.42916036,0.0002059,10]
[386562842,1758395227166,-287.54232238,0.00020591,10]
[386562843,1758395227189,-194.86821679,0.00020593,2]
[386562844,1758395254677,168.055172,0.00019597,2]
[386562845,1758395255783,-105.13178321,0.00020593,2]
[386562846,1758395255805,-167.19106247,0.00020593,2]
[386562847,1758395257849,-510.17346006,0.00020593,2]
[386562848,1758395263209,-292.04322377,0.00020588,10]
[386562849,1758395264720,150.0,0.00019226,2]
[386562850,1758395265123,150.0,0.00020141,2]
[386562851,1758395265256,-184.54661208,0.00020588,10]
[386562852,1758395267685,-24.13016415,0.00020588,10]
[386562853,1758395267707,-268.34526814,0.00020593,2]
[386562854,1758395270648,-211.12955123,0.00020593,2]
[386562855,1758395272646,-152.51694445,0.00020588,10]
[386562856,1758395275815,-196.91157007,0.00020588,10]
[386562857,1758395278965,-67.84148548,0.00020588,10]
[386562858,1758395278988,-43.1606581,0.00020593,2]
[386562859,1758395279011,-146.24290568,0.00020594,2]
[386562860,1758395280830,-153.75709432,0.00020594,2]
[386562861,1758395280853,-104.84480322,0.00020594,2]
[386562862,1758395283409,-237.23164796,0.00020593,2]
[386562863,1758395287542,-62.76835204,0.00020593,2]
[386562864,1758395287564,-195.15519678,0.00020594,2]
[386562865,1758395287587,-1.44277364,0.00020594,2]
[386562866,1758395289589,-309.21773017,0.00020594,2]
[386562867,1758395293139,-379.00479898,0.00020594,2]
[386562868,1758395294732,-221.53694305,0.00020588,10]
[386562869,1758395296830,-126.18305695,0.00020588,10]
[386562870,1758395296853,-79.59134309,0.00020594,2]
[386562871,1758395300471,-305.61843339,0.00020594,2]
[386562872,1758395302517,-125.12492073,0.00020594,2]
[386562873,1758395302542,-135.5466912,0.00020594,2]
[386562874,1758395304761,-217.54967724,0.00020594,2]
[386562875,1758395307912,-289.77,0.00020588,10]
[386562876,1758395307937,-130.64065064,0.00020594,2]
[386562877,1758395309363,-16.26298092,0.00020594,2]
[386562878,1758395309387,-191.97288271,0.00020594,2]
[386562879,1758395313001,-156.68162977,0.00020594,2]
[386562880,1758395315766,-230.27,0.00020592,3]
[386562881,1758395315791,-6.62747741,0.00020594,2]